fUST/lending_fUST_20260304
["ID","MTS","AMOUNT","RATE_DAILY","PERIOD"]
[407602040,1772565051694,-500.0,0.00011232,2]
[407602041,1772565051705,-1109.82981674,0.00011232,2]
[407602042,1772565051717,-1664.54,0.00011232,2]
[407602043,1772565051728,-500.0,0.00011232,2]
[407602044,1772565051740,-1457.54,0.00011232,2]
[407602045,1772565051750,-500.0,0.00011232,2]
[407602046,1772565051761,-500.0,0.00011232,2]
[407602047,1772565051771,-500.0,0.00011232,2]
[407602048,1772565051781,-1447.18,0.00011232,2]
[407602049,1772565051796,-500.0,0.00011232,2]
[407602050,1772565051805,-505.48,0.00011232,2]
[407602051,1772565051815,-848.86,0.00011232,2]
[407602052,1772565051827,-500.0,0.00011232,2]
[407602053,1772565051836,-545.9,0.00011232,2]
[407602054,1772565051847,-515.17,0.00011232,2]
[407602055,1772565051857,-556.89,0.00011232,2]
[407602056,1772565051868,-500.0,0.00011232,2]
[407602057,1772565051878,-500.0,0.00011232,2]
[407602058,1772565051889,-615.26393142,0.00011232,2]
[407602059,1772565051900,-162.71,0.00011232,2]
[407602060,1772565051909,-500.0,0.00011232,2]
[407602061,1772565051929,-2108.14,0.00011232,2]
[407602062,1772565051948,-500.0,0.00011232,2]
[407602063,1772565051959,-500.0,0.00011232,2]
[407602064,1772565051978,-1496.16,0.00011232,2]
[407602065,1772565051994,-500.0,0.00011232,2]
[407602066,1772565052006,-718.25,0.00011232,2]
[407602067,1772565052021,-500.0,0.00011232,2]
[407602068,1772565052032,-500.0,0.00011232,2]
[407602069,1772565052042,-659.4,0.00011232,2]
[407602070,1772565052055,-500.0,0.00011232,2]
[407602071,1772565052065,-500.0,0.00011232,2]
[407602072,1772565052075,-500.0,0.00011232,2]
[407602073,1772565052085,-4293.61,0.00011232,2]
[407602074,1772565052097,-500.0,0.00011232,2]
[407602075,1772565052107,-799.08,0.00011232,2]
[407602076,1772565052119,-500.0,0.00011232,2]
[407602077,1772565052137,-533.78,0.00011232,2]
[407602078,1772565052151,-2891.78,0.00011232,2]
[407602079,1772565052164,-1578.29,0.00011232,2]
[407602080,1772565052183,-500.0,0.00011232,2]
[407602081,1772565052196,-619.27,0.00011232,2]
[407602082,1772565052207,-3509.68,0.00011232,2]
[407602083,1772565052225,-533.01117441,0.00011232,2]
[407602084,1772565052238,-826.84,0.00011232,2]
[407602085,1772565052253,-500.0,0.00011232,2]
[407602086,1772565052270,-500.0,0.00011232,2]
[407602087,1772565052281,-715.4,0.00011232,2]
[407602088,1772565052291,-500.0,0.00011232,2]
[407602089,1772565052306,-500.0,0.00011232,2]
[407602090,1772565052319,-500.0,0.00011232,2]
[407602091,1772565052338,-500.0,0.00011232,2]
[407602092,1772565052350,-555.91,0.00011232,2]
[407602093,1772565052363,-500.0,0.00011232,2]
[407602094,1772565052375,-500.0,0.00011232,2]
[407602095,1772565052386,-3235.46,0.00011232,2]
[407602096,1772565052399,-752.45,0.00011232,2]
[407602097,1772565052412,-500.0,0.00011232,2]
[407602098,1772565052425,-1129.27,0.00011232,2]
[407602099,1772565052437,-500.0,0.00011232,2]
[407602100,1772565052466,-500.0,0.00011232,2]
[407602101,1772565052478,-500.0,0.00011232,2]
[407602102,1772565052491,-500.0,0.00011232,2]
[407602103,1772565052503,-500.0,0.00011232,2]
[407602104,1772565052517,-794.56,0.00011232,2]
[407602105,1772565052530,-506.88,0.00011232,2]
[407602106,1772565052542,-500.0,0.00011232,2]
[407602107,1772565052553,-500.0,0.00011232,2]
[407602108,1772565052568,-728.99,0.00011232,2]
[407602109,1772565052579,-809.7,0.00011232,2]
[407602110,1772565052595,-500.0,0.00011232,2]
[407602111,1772565052606,-500.0,0.00011232,2]
[407602112,1772565052619,-599.2,0.00011232,2]
[407602113,1772565052634,-500.0,0.00011232,2]
[407602114,1772565052648,-6580.63,0.00011232,2]
[407602115,1772565052661,-500.0,0.00011232,2]
[407602116,1772565052672,-500.0,0.00011232,2]
[407602117,1772565052684,-500.0,0.00011232,2]
[407602118,1772565052694,-174.83815548,0.00011232,2]
[407602119,1772565053587,-500.0,0.00010951,2]
[407602120,1772565053598,-3184.70325648,0.00010958,2]
[407602121,1772565053613,-253.58814896,0.00010958,2]
[407602122,1772565055363,-2549.59859456,0.00010958,2]
[407602123,1772565055373,-500.0,0.00010958,2]
[407602124,1772565055383,-500.0,0.00010958,2]
[407602125,1772565055393,-325.16184452,0.00011232,2]
[407602126,1772565055406,-500.0,0.00011232,2]
[407602127,1772565055416,-1287.28,0.00011232,2]
[407602128,1772565055425,-500.0,0.00011232,2]
[407602129,1772565055435,-1272.63,0.00011232,2]
[407602130,1772565055444,-637.04,0.00011232,2]
[407602131,1772565055455,-1234.74,0.00011232,2]
[407602132,1772565055465,-504.66645313,0.00011232,2]
[407602133,1772565055474,-547.01,0.00011232,2]
[407602134,1772565055483,-73.42007821,0.00011232,2]
[407602135,1772565055495,-426.57992179,0.00011232,2]
[407602136,1772565055504,-799.47309643,0.00011232,2]
[407602137,1772565055515,-1260.4790209,0.00011232,2]
[407602138,1772565055538,-2152.22788267,0.00011232,2]
[407602139,1772565055547,-500.0,0.00011232,2]
[407602140,1772565055556,-500.0,0.00011232,2]
[407602141,1772565055566,-663.95,0.00011232,2]
[407602142,1772565055575,-579.83,0.00011232,2]
[407602143,1772565055584,-344.15874334,0.00011232,2]
[407602144,1772565055596,-155.84125666,0.00011232,2]
[407602145,1772565055606,-289.52904575,0.00011232,2]
[407602146,1772565055939,-474.85095425,0.00011232,2]
[407602147,1772565055949,-984.56,0.00011232,2]
[407602148,1772565055959,-1047.89,0.00011232,2]
[407602149,1772565055970,-1732.21,0.00011232,2]
[407602150,1772565055980,-720.21,0.00011232,2]
[407602151,1772565055991,-523.58,0.00011232,2]
[407602152,1772565056001,-1441.56,0.00011232,2]
[407602153,1772565056011,-500.0,0.00011232,2]
[407602154,1772565056021,-500.0,0.00011232,2]
[407602155,1772565056033,-500.0,0.00011232,2]
[407602156,1772565056044,-500.0,0.00011232,2]
[407602157,1772565056055,-500.0,0.00011232,2]
[407602158,1772565056065,-73.0697439,0.00011232,2]
[407602159,1772565056077,-528.1902561,0.00011232,2]
[407602160,1772565056087,-500.0,0.00011232,2]
[407602161,1772565056097,-229.68162397,0.00011232,2]
[407602162,1772565056110,-346.38830132,0.00011232,2]
[407602163,1772565056129,-94.01007471,0.00011232,2]
[407602164,1772565056139,-912.3,0.00011232,2]
[407602165,1772565056148,-715.21228233,0.00011232,2]
[407602166,1772565056161,-1395.44771767,0.00011232,2]
[407602167,1772565056171,-1006.24,0.00011232,2]
[407602168,1772565056181,-500.0,0.00011232,2]
[407602169,1772565056191,-690.71,0.00011232,2]
[407602170,1772565056200,-556.91,0.00011232,2]
[407602171,1772565056210,-937.09,0.00011232,2]
[407602172,1772565056220,-1384.06,0.00011232,2]
[407602173,1772565056229,-1161.78,0.00011232,2]
[407602174,1772565056239,-856.34,0.00011232,2]
[407602175,1772565056248,-500.0,0.00011232,2]
[407602176,1772565056258,-533.68,0.00011232,2]
[407602177,1772565056267,-500.0,0.00011232,2]
[407602178,1772565056277,-1640.12,0.00011232,2]
[407602179,1772565056287,-500.0,0.00011232,2]
[407602180,1772565056296,-1220.57,0.00011232,2]
[407602181,1772565056306,-500.0,0.00011232,2]
[407602182,1772565056316,-636.19,0.00011232,2]
[407602183,1772565056328,-1524.5,0.00011232,2]
[407602184,1772565056338,-579.03,0.00011232,2]
[407602185,1772565056347,-500.0,0.00011232,2]
[407602186,1772565056357,-1936.65,0.00011232,2]
[407602187,1772565056367,-886.02,0.00011232,2]
[407602188,1772565056377,-1616.32,0.00011232,2]
[407602189,1772565056387,-1540.64,0.00011232,2]
[407602190,1772565056398,-500.0,0.00011232,2]
[407602191,1772565056408,-2221.41,0.00011232,2]
[407602192,1772565056417,-500.0,0.00011232,2]
[407602193,1772565056427,-845.07,0.00011232,2]
[407602194,1772565056436,-756.84,0.00011232,2]
[407602195,1772565056446,-500.0,0.00011232,2]
[407602196,1772565056456,-500.0,0.00011232,2]
[407602197,1772565056466,-500.0,0.00011232,2]
[407602198,1772565056476,-1259.2,0.00011232,2]
[407602199,1772565056486,-500.0,0.00011232,2]
[407602200,1772565056496,-1079.64,0.00011232,2]
[407602201,1772565056506,-635.78,0.00011232,2]
[407602202,1772565056516,-500.0,0.00011232,2]
[407602203,1772565056530,-500.0,0.00011232,2]
[407602204,1772565056540,-500.0,0.00011232,2]
[407602205,1772565056551,-500.0,0.00011232,2]
[407602206,1772565056561,-2050.01,0.00011232,2]
[407602207,1772565056570,-25981.26197228,0.00011232,2]
[407602208,1772565056580,-1118.57,0.00011232,2]
[407602209,1772565056591,-500.0,0.00011232,2]
[407602210,1772565056601,-2032.18,0.00011232,2]
[407602211,1772565056611,-500.0,0.00011232,2]
[407602212,1772565056621,-500.0,0.00011232,2]
[407602213,1772565056630,-500.0,0.00011232,2]
[407602214,1772565056640,-1110.32,0.00011232,2]
[407602215,1772565056651,-500.0,0.00011232,2]
[407602216,1772565056663,-1080.33,0.00011232,2]
[407602217,1772565056673,-285.11002872,0.00011232,2]
[407602218,1772565056685,-500.0,0.00011232,2]
[407602219,1772565056695,-500.0,0.00011232,2]
[407602220,1772565056705,-500.0,0.00011232,2]
[407602221,1772565056716,-500.0,0.00011232,2]
[407602222,1772565056726,-1792.7,0.00011232,2]
[407602223,1772565056736,-1583.15,0.00011232,2]
[407602224,1772565056746,-500.0,0.00011232,2]
[407602225,1772565056756,-500.0,0.00011232,2]
[407602226,1772565056767,-500.0,0.00011232,2]
[407602227,1772565056778,-293.32588347,0.00011232,2]
[407602228,1772565056793,-5664.4637703,0.00011232,2]
[407602229,1772565056810,-4670.49034623,0.00011232,2]
[407602230,1772565056821,-500.0,0.00011232,2]
[407602231,1772565056831,-500.0,0.00011232,2]
[407602232,1772565056841,-500.0,0.00011232,2]
[407602233,1772565056850,-1409.72,0.00011232,2]
[407602234,1772565056860,-2088.0,0.00011232,2]
[407602235,1772565056870,-1115.69,0.00011232,2]
[407602236,1772565056880,-500.0,0.00011232,2]
[407602237,1772565056890,-1103.38,0.00011232,2]
[407602238,1772565056899,-2555.70598588,0.00011232,2]
[407611892,1772566232113,-170.85860455,0.0001,2]
[407611894,1772566232122,-437.686477,0.0001,2]
[407611897,1772566232132,-487.54432682,0.00010099,2]
[407611900,1772566232141,-300.0,0.00010669,2]
[407611903,1772566232152,-225.23866195,0.00010669,2]
[407611953,1772566238189,-974.76133805,0.00010669,2]
[407611954,1772566238198,-4272.11003266,0.0001067,2]
[407611955,1772566238208,-3803.30276597,0.0001067,2]
[407611956,1772566238216,-7665.1362026,0.0001077,2]
[407611957,1772566238225,-1389.0,0.0001079,2]
[407611958,1772566238234,-2186.0,0.0001079,2]
[407611959,1772566238242,-638.0,0.0001079,2]
[407611960,1772566238250,-500.0,0.00010799,2]
[407611961,1772566238259,-500.0,0.00010799,2]
[407611962,1772566238267,-361.08484795,0.00010799,2]
[407611963,1772566238278,-500.0,0.00010799,2]
[407611964,1772566238287,-964.6401559,0.000108,2]
[407611965,1772566238297,-1635.19367009,0.000108,2]
[407611966,1772566238307,-6000.0,0.000108,2]
[407611967,1772566238317,-2818.033586,0.00010834,2]
[407611968,1772566238327,-158.215,0.00010858,2]
[407611969,1772566238337,-414.24607642,0.00010858,2]
[407611970,1772566238347,-1957.856,0.00010951,2]
[407611971,1772566238356,-2230.315306,0.00010951,2]
[407611972,1772566238365,-500.0,0.00010958,2]
[407611973,1772566238375,-500.0,0.00010958,2]
[407611974,1772566238384,-500.0,0.00010958,2]
[407611975,1772566238393,-500.0,0.00010958,2]
[407611976,1772566238406,-500.0,0.00010958,2]
[407611977,1772566238415,-500.0,0.00010958,2]
[407611978,1772566238425,-506.10790138,0.00010958,2]
[407611979,1772566238434,-162.01882178,0.00010958,2]
[407611980,1772566238443,-500.0,0.00010958,2]
[407611981,1772566238453,-976.18,0.00010958,2]
[407611982,1772566238462,-500.0,0.00010958,2]
[407611983,1772566238472,-500.0,0.00010958,2]
[407611984,1772566238481,-500.0,0.00010958,2]
[407611985,1772566238491,-500.0,0.00010958,2]
[407611986,1772566238502,-824.24,0.00010958,2]
[407611987,1772566238511,-500.0,0.00010958,2]
[407611988,1772566238520,-500.0,0.00010958,2]
[407611989,1772566238530,-500.0,0.00010958,2]
[407611990,1772566238539,-500.0,0.00010958,2]
[407611991,1772566238549,-635.94,0.00010958,2]
[407611992,1772566238558,-1416.35,0.00010958,2]
[407611993,1772566238567,-500.0,0.00010958,2]
[407611994,1772566238576,-500.0,0.00010958,2]
[407611995,1772566238586,-796.13,0.00010958,2]
[407611996,1772566238595,-500.0,0.00010958,2]
[407611997,1772566238605,-500.0,0.00010958,2]
[407611998,1772566238617,-500.0,0.00010958,2]
[407611999,1772566238627,-500.0,0.00010958,2]
[407612000,1772566238636,-500.0,0.00010958,2]
[407612001,1772566238645,-500.0,0.00010958,2]
[407612002,1772566238658,-923.58,0.00010958,2]
[407612003,1772566238667,-500.0,0.00010958,2]
[407612004,1772566238677,-500.0,0.00010958,2]
[407612005,1772566238687,-1003.94,0.00010958,2]
[407612006,1772566238698,-503.62098526,0.00010958,2]
[407612007,1772566238708,-500.0,0.00010958,2]
[407612008,1772566238717,-500.0,0.00010958,2]
[407612009,1772566238727,-500.0,0.00010958,2]
[407612010,1772566238738,-500.0,0.00010958,2]
[407612011,1772566238748,-1606.11690712,0.00010958,2]
[407612012,1772566238762,-941.34309288,0.00010958,2]
[407612013,1772566238772,-949.42,0.00010958,2]
[407612014,1772566238781,-500.0,0.00010958,2]
[407612015,1772566238791,-500.0,0.00010958,2]
[407612016,1772566238801,-500.0,0.00010958,2]
[407612017,1772566238810,-867.02,0.00010958,2]
[407612018,1772566238819,-500.0,0.00010958,2]
[407612019,1772566238830,-500.0,0.00010958,2]
[407612020,1772566238839,-500.0,0.00010958,2]
[407612021,1772566238848,-500.0,0.00010958,2]
[407612022,1772566238858,-628.4,0.00010958,2]
[407612023,1772566238867,-500.0,0.00010958,2]
[407612024,1772566238876,-577.73007531,0.00010958,2]
[407612025,1772566238889,-806.52,0.00010958,2]
[407612026,1772566238900,-500.0,0.00010958,2]
[407612027,1772566238909,-500.0,0.00010958,2]
[407612028,1772566238918,-500.0,0.00010958,2]
[407612029,1772566238928,-500.0,0.00010958,2]
[407612030,1772566238937,-615.56,0.00010958,2]
[407612031,1772566238946,-500.0,0.00010958,2]
[407612032,1772566238955,-500.0,0.00010958,2]
[407612033,1772566238964,-500.0,0.00010958,2]
[407612034,1772566238973,-500.0,0.00010958,2]
[407612035,1772566238983,-500.0,0.00010958,2]
[407612036,1772566238992,-500.0,0.00010958,2]
[407612037,1772566239001,-1863.53,0.00010958,2]
[407612038,1772566239011,-1053.26,0.00010958,2]
[407612039,1772566239020,-500.0,0.00010958,2]
[407612040,1772566239030,-500.0,0.00010958,2]
[407612041,1772566239039,-500.0,0.00010958,2]
[407612042,1772566239048,-500.0,0.00010958,2]
[407612043,1772566239057,-500.0,0.00010958,2]
[407612044,1772566239314,-500.0,0.00010958,2]
[407612045,1772566239332,-500.0,0.00010958,2]
[407612046,1772566239342,-500.0,0.00010958,2]
[407612047,1772566239351,-500.0,0.00010958,2]
[407612048,1772566239360,-1108.93,0.00010958,2]
[407612049,1772566239370,-532.75,0.00010958,2]
[407612050,1772566239379,-500.0,0.00010958,2]
[407612051,1772566239388,-1405.0,0.00010958,2]
[407612052,1772566239399,-533.69,0.00010958,2]
[407612053,1772566239408,-500.0,0.00010958,2]
[407612054,1772566239417,-500.0,0.00010958,2]
[407612055,1772566239426,-550.96,0.00010958,2]
[407612056,1772566239435,-500.0,0.00010958,2]
[407612057,1772566239445,-500.0,0.00010958,2]
[407612058,1772566239454,-655.93,0.00010958,2]
[407612059,1772566239464,-500.0,0.00010958,2]
[407612060,1772566239473,-500.0,0.00010958,2]
[407612061,1772566239482,-500.0,0.00010958,2]
[407612062,1772566239492,-501.11658367,0.00010958,2]
[407612063,1772566239502,-1396.8,0.00010958,2]
[407612064,1772566239513,-500.0,0.00010958,2]
[407612065,1772566239524,-1606.86,0.00010958,2]
[407612066,1772566239534,-500.0,0.00010958,2]
[407612067,1772566239543,-500.0,0.00010958,2]
[407612068,1772566239553,-500.0,0.00010958,2]
[407612069,1772566239563,-500.0,0.00010958,2]
[407612070,1772566239574,-500.0,0.00010958,2]
[407612071,1772566239584,-765.78,0.00010958,2]
[407612072,1772566239594,-500.0,0.00010958,2]
[407612073,1772566239603,-500.0,0.00010958,2]
[407612074,1772566239614,-387.35532298,0.00010958,2]
[407612076,1772566239621,-693.55,0.00010958,2]
[407612078,1772566239629,-500.0,0.00010958,2]
[407612079,1772566239637,-500.0,0.00010958,2]
[407612080,1772566239646,-813.49,0.00010958,2]
[407612081,1772566239655,-593.47,0.00010958,2]
[407612082,1772566239668,-688.33,0.00010958,2]
[407612083,1772566239676,-500.0,0.00010958,2]
[407612084,1772566239685,-511.54,0.00010958,2]
[407612085,1772566239694,-500.0,0.00010958,2]
[407612086,1772566239703,-500.0,0.00010958,2]
[407612087,1772566239712,-500.0,0.00010958,2]
[407612088,1772566239721,-500.0,0.00010958,2]
[407612089,1772566239731,-500.0,0.00010958,2]
[407612090,1772566239740,-1512.53,0.00010958,2]
[407612091,1772566239750,-874.29,0.00010958,2]
[407612092,1772566239758,-500.0,0.00010958,2]
[407612093,1772566239769,-1433.82,0.00010958,2]
[407612094,1772566239778,-500.0,0.00010958,2]
[407612095,1772566239788,-500.0,0.00010958,2]
[407612096,1772566239797,-500.0,0.00010958,2]
[407612097,1772566239807,-500.0,0.00010958,2]
[407612098,1772566239816,-500.0,0.00010958,2]
[407612099,1772566239825,-500.25659246,0.00010958,2]
[407612100,1772566239835,-1082.22,0.00010958,2]
[407612101,1772566239845,-500.0,0.00010958,2]
[407612102,1772566239855,-574.23,0.00010958,2]
[407612103,1772566239865,-500.0,0.00010958,2]
[407612104,1772566239874,-500.0,0.00010958,2]
[407612105,1772566239884,-500.0,0.00010958,2]
[407612106,1772566239894,-849.1,0.00010958,2]
[407612107,1772566239905,-500.0,0.00010958,2]
[407612108,1772566239915,-500.0,0.00010958,2]
[407612109,1772566239925,-500.0,0.00010958,2]
[407612110,1772566239934,-775.97,0.00010958,2]
[407612111,1772566239944,-500.0,0.00010958,2]
[407612112,1772566239954,-500.0,0.00010958,2]
[407612113,1772566239963,-500.0,0.00010958,2]
[407612114,1772566239972,-500.0,0.00010958,2]
[407612115,1772566239982,-685.59,0.00010958,2]
[407612116,1772566239991,-626.32624455,0.00010958,2]
[407612117,1772566240000,-1038.0,0.00010958,2]
[407612118,1772566240010,-610.5,0.00010958,2]
[407612119,1772566240020,-732.53,0.00010958,2]
[407612120,1772566240029,-500.0,0.00010958,2]
[407612121,1772566240039,-500.0,0.00010958,2]
[407612122,1772566240048,-500.0,0.00010958,2]
[407612123,1772566240057,-637.61,0.00010958,2]
[407612124,1772566240067,-500.0,0.00010958,2]
[407612125,1772566240076,-500.0,0.00010958,2]
[407612126,1772566240085,-500.0,0.00010958,2]
[407612127,1772566240095,-690.2,0.00010958,2]
[407612129,1772566240104,-500.0,0.00010958,2]
[407612131,1772566240113,-500.0,0.00010958,2]
[407612132,1772566240123,-561.25864091,0.00010958,2]
[407612133,1772566240132,-515.24,0.00010958,2]
[407612134,1772566240142,-500.0,0.00010958,2]
[407612135,1772566240152,-316.98096114,0.00010958,2]
[407612137,1772566240161,-500.0,0.00010958,2]
[407612139,1772566240171,-500.0,0.00010958,2]
[407612140,1772566240180,-579.03,0.00010958,2]
[407612141,1772566240190,-820.66,0.00010958,2]
[407612142,1772566240199,-500.0,0.00010958,2]
[407612143,1772566240209,-1660.03,0.00010958,2]
[407612144,1772566240219,-500.0,0.00010958,2]
[407612145,1772566240228,-500.0,0.00010958,2]
[407612146,1772566240238,-500.0,0.00010958,2]
[407612147,1772566240248,-500.0,0.00010958,2]
[407612148,1772566240257,-570.7155162,0.00010958,2]
[407612149,1772566240267,-524.22,0.00010958,2]
[407612150,1772566240276,-661.93,0.00010958,2]
[407612151,1772566240286,-2393.52,0.00010958,2]
[407612152,1772566240295,-609.29,0.00010958,2]
[407612153,1772566240305,-500.0,0.00010958,2]
[407612154,1772566240315,-243.13443358,0.00010958,2]
[407612155,1772566240324,-725.31,0.00010958,2]
[407612156,1772566240333,-500.0,0.00010958,2]
[407612157,1772566240343,-609.68,0.00010958,2]
[407612158,1772566240353,-898.04,0.00010958,2]
[407612159,1772566240362,-500.0,0.00010958,2]
[407612160,1772566240372,-500.0,0.00010958,2]
[407612161,1772566240381,-500.0,0.00010958,2]
[407612162,1772566240391,-500.0,0.00010958,2]
[407612163,1772566240400,-748.37,0.00010958,2]
[407612164,1772566240410,-500.0,0.00010958,2]
[407612165,1772566240420,-627.55,0.00010958,2]
[407612166,1772566240430,-500.0,0.00010958,2]
[407612167,1772566240440,-500.0,0.00010958,2]
[407612168,1772566240449,-500.0,0.00010958,2]
[407612169,1772566240459,-500.0,0.00010958,2]
[407612170,1772566240469,-500.0,0.00010958,2]
[407612171,1772566240478,-7084.53,0.00010958,2]
[407612172,1772566240487,-1914.0,0.00010958,2]
[407612173,1772566240496,-500.0,0.00010958,2]
[407612174,1772566240506,-1022.71,0.00010958,2]
[407612175,1772566240516,-576.21,0.00010958,2]
[407612176,1772566240526,-500.0,0.00010958,2]
[407612177,1772566240536,-518.2180332,0.00010958,2]
[407612178,1772566240546,-500.0,0.00010958,2]
[407612179,1772566240555,-556.91,0.00010958,2]
[407612180,1772566240565,-280.57046294,0.00010958,2]
[407612181,1772566240575,-511.44,0.00010958,2]
[407612182,1772566240584,-508.08,0.00010958,2]
[407612183,1772566240594,-500.0,0.00010958,2]
[407612184,1772566240604,-1451.22,0.00010958,2]
[407612185,1772566240613,-265.7316326,0.00010958,2]
[407612186,1772566240622,-500.0,0.00010958,2]
[407612187,1772566240632,-500.0,0.00010958,2]
[407612188,1772566240641,-1855.95,0.00010958,2]
[407612189,1772566240652,-753.94,0.00010958,2]
[407612190,1772566240663,-500.0,0.00010958,2]
[407612191,1772566240673,-500.0,0.00010958,2]
[407612192,1772566240682,-500.0,0.00010958,2]
[407612193,1772566240691,-1292.24,0.00010958,2]
[407612194,1772566240702,-478.74085099,0.00010958,2]
[407612195,1772566240712,-2897.96,0.00010958,2]
[407612196,1772566240722,-4910.01,0.00010958,2]
[407612197,1772566240733,-500.0,0.00010958,2]
[407612198,1772566240743,-809.85,0.00010958,2]
[407612199,1772566240753,-500.0,0.00010958,2]
[407612200,1772566240762,-500.0,0.00010958,2]
[407612201,1772566240771,-500.0,0.00010958,2]
[407612202,1772566240780,-744.98,0.00010958,2]
[407612203,1772566240789,-1362.6,0.00010958,2]
[407612204,1772566240799,-172.0980165,0.00010958,2]
[407612205,1772566240808,-500.0,0.00010958,2]
[407612206,1772566240818,-500.0,0.00010958,2]
[407612207,1772566240827,-500.0,0.00010958,2]
[407612208,1772566240836,-500.0,0.00010958,2]
[407612209,1772566240846,-500.0,0.00010958,2]
[407612210,1772566240855,-906.47,0.00010958,2]
[407612211,1772566240865,-500.0,0.00010958,2]
[407612212,1772566240874,-1215.19,0.00010958,2]
[407612213,1772566240883,-1556.86,0.00010958,2]
[407612214,1772566240893,-500.0,0.00010958,2]
[407612215,1772566240903,-500.0,0.00010958,2]
[407612216,1772566240913,-500.0,0.00010958,2]
[407612217,1772566240923,-292.86638895,0.00010958,2]
[407612218,1772566240933,-1611.48,0.00010958,2]
[407612219,1772566240942,-500.0,0.00010958,2]
[407612221,1772566240952,-1009.96,0.00010958,2]
[407612223,1772566240962,-500.0,0.00010958,2]
[407612225,1772566240972,-709.58,0.00010958,2]
[407612227,1772566240981,-500.0,0.00010958,2]
[407612229,1772566240991,-500.0,0.00010958,2]
[407612231,1772566241000,-500.0,0.00010958,2]
[407612232,1772566241010,-500.0,0.00010958,2]
[407612233,1772566241020,-1331.55,0.00010958,2]
[407612234,1772566241029,-634.91,0.00010958,2]
[407612235,1772566241040,-500.0,0.00010958,2]
[407612236,1772566241050,-1685.9,0.00010958,2]
[407612237,1772566241060,-500.0,0.00010958,2]
[407612238,1772566241069,-574.0,0.00010958,2]
[407612239,1772566241078,-500.0,0.00010958,2]
[407612240,1772566241088,-500.0,0.00010958,2]
[407612241,1772566241098,-500.0,0.00010958,2]
[407612242,1772566241107,-522.70072759,0.00010958,2]
[407612243,1772566241117,-2563.4,0.00010958,2]
[407612244,1772566241126,-1153.58,0.00010958,2]
[407612245,1772566241135,-500.0,0.00010958,2]
[407612246,1772566241145,-500.0,0.00010958,2]
[407612247,1772566241154,-500.0,0.00010958,2]
[407612248,1772566241164,-2020.3,0.00010958,2]
[407612249,1772566241174,-500.0,0.00010958,2]
[407612250,1772566241183,-1742.49,0.00010958,2]
[407612251,1772566241193,-500.0,0.00010958,2]
[407612252,1772566241202,-500.0,0.00010958,2]
[407612253,1772566241212,-500.0,0.00010958,2]
[407612254,1772566241221,-598.84215952,0.00010958,2]
[407612255,1772566241230,-500.0,0.00010958,2]
[407612256,1772566241239,-151.0,0.00010958,2]
[407612257,1772566241249,-500.0,0.00010958,2]
[407612258,1772566241258,-500.0,0.00010958,2]
[407612259,1772566241267,-1079.25,0.00010958,2]
[407612260,1772566241276,-500.0,0.00010958,2]